bitfinex-derivatives/quotes_ETHF0:USTF0_20251225
["timestamp","ask_amount","ask_price","bid_price","bid_amount"]
[1766649781138,4.25258678,2942.6,2941.4,3.4]
[1766649781445,4.26665851,2942.6,2941.4,3.4]
[1766649782039,3.399,2942.6,2941.4,3.4]
[1766649782438,4.26665851,2942.6,2941.4,3.4]
[1766649782940,3.399,2942.6,2941.4,3.4]
[1766649783429,4.28516037,2942.6,2941.4,3.4]
[1766649785646,4.27656604,2942.6,2941.4,3.4]
[1766649786345,3.399,2942.6,2941.4,3.4]
[1766649786546,0.17002,2942.9,2941.4,3.4]
[1766649786734,17.968,2942.8,2941.4,3.4]
[1766649788549,9.477,2942.7,2941.4,3.4]
[1766649788735,0.87426342,2942.7,2941.4,3.4]
[1766649788935,3.4,2942.6,2941.4,3.4]
[1766649800045,3.4,2942.6,2941.3,1.018687]
[1766649800346,3.4,2942.6,2941.4,3.4]
[1766649840084,3.4,2942.6,2941.1,0.00432171]
[1766649840289,3.4,2942.6,2941.2,3.4]
[1766649840488,3.57003,2942.6,2941.2,3.4]
[1766649854306,8.502,2942.5,2941.2,3.4]
[1766649854504,6.122,2942.4,2941.2,3.4]
[1766649854697,3.4,2942.3,2941.2,3.4]
[1766649854897,4.15031972,2942.3,2941.2,3.4]
[1766649893948,0.75031972,2942.3,2941.2,3.4]
[1766649894152,9.518,2942.2,2941.2,3.4]
[1766649895148,0.75031972,2942.3,2941.2,3.4]
[1766649895342,9.518,2942.2,2941.2,3.4]
[1766649900049,1.00042753,2942.1,2941.2,3.4]
[1766649900254,9.518,2942.2,2941.2,3.4]
[1766649900444,1.00042828,2942.1,2941.2,3.4]
[1766649900648,9.518,2942.2,2941.2,3.4]
[1766649900845,0.99934091,2942.1,2941.2,3.4]
[1766649901052,3.4,2942.0,2941.2,3.4]
[1766649903850,0.75031972,2942.3,2941.2,3.4]
[1766649904055,9.517,2942.2,2941.2,3.4]
[1766649904252,3.4,2942.1,2941.2,3.4]
[1766649904552,3.3005,2942.1,2941.2,3.4]
[1766649904748,3.0418,2942.1,2941.2,3.4]
[1766649904954,2.9423,2942.1,2941.2,3.4]
[1766649906654,0.75031972,2942.3,2941.2,3.4]
[1766649906857,4.15031972,2942.3,2941.2,3.4]
[1766649908662,0.75031972,2942.3,2941.2,3.4]
[1766649908957,4.15031972,2942.3,2941.2,3.4]
[1766649940883,0.75031972,2942.3,2941.2,3.4]
[1766649942480,0.75031972,2942.3,2941.1,0.17444171]
[1766649942674,0.75031972,2942.3,2941.1,0.00432171]
[1766649942874,0.92496436,2942.4,2941.2,5.517]
[1766649943179,4.32488055,2942.5,2941.2,5.517]
[1766649943478,0.99649113,2942.4,2941.2,5.517]
[1766649943680,4.35387401,2942.5,2941.2,6.65039287]
[1766649944274,0.95387401,2942.5,2941.2,6.65039287]
[1766649944475,4.35387401,2942.5,2941.2,6.65039287]
[1766649945484,4.3464229,2942.5,2941.2,6.66366334]
[1766649945984,3.4,2942.5,2941.2,5.517]
[1766649946886,4.3464229,2942.5,2941.2,6.66366334]
[1766649947186,4.3279054,2942.5,2941.2,6.65695236]
[1766649948988,4.3454717,2942.5,2941.2,6.62790895]
[1766649950588,3.4,2942.5,2941.2,5.517]
[1766649950791,4.34075395,2942.5,2941.2,6.63622457]
[1766649951490,3.4,2942.5,2941.2,5.517]
[1766649951890,4.34075395,2942.5,2941.2,6.63622457]
[1766649953194,4.35792984,2942.5,2941.2,6.63451258]
[1766649953492,0.95792984,2942.5,2941.2,6.63451258]
[1766649953695,4.35792984,2942.5,2941.2,6.63451258]
[1766649954594,4.34588179,2942.5,2941.2,6.66488668]
[1766649954997,3.4,2942.5,2941.2,5.517]
[1766649955797,4.34588179,2942.5,2941.2,6.66488668]
[1766649957498,3.4,2942.5,2941.2,5.517]
[1766649957694,4.35770168,2942.5,2941.2,6.62827399]
[1766649957893,3.4,2942.5,2941.2,5.517]
[1766649958899,4.35770168,2942.5,2941.2,6.62827399]
[1766649960701,4.32859126,2942.5,2941.2,6.64551227]
[1766649961000,3.4,2942.5,2941.2,5.517]
[1766649961202,1.224535,2942.9,2941.2,5.517]
[1766649961396,4.39250649,2942.8,2941.2,6.67037786]
[1766649961700,0.99250649,2942.7,2941.2,6.67037786]
[1766649961902,0.99250649,2942.6,2941.2,6.67037786]
[1766649962101,4.34529324,2942.8,2941.2,6.68939648]
[1766649962402,0.99247796,2942.7,2941.2,6.68939648]
[1766649962603,0.99247796,2942.6,2941.2,6.68939648]
[1766649962800,4.34529324,2942.8,2941.2,6.68939648]
[1766649962996,0.99245548,2942.7,2941.2,6.68939648]
[1766649963201,0.99245548,2942.6,2941.2,6.68939648]
[1766649963401,4.34529324,2942.8,2941.2,6.68939648]
[1766649963601,0.99243222,2942.7,2941.2,5.517]
[1766649963802,0.99243222,2942.6,2941.2,6.67789969]
[1766649964000,4.34529324,2942.8,2941.2,5.517]
[1766649964197,0.99243185,2942.7,2941.2,5.517]
[1766649964404,0.99243185,2942.6,2941.2,5.68711]
[1766649964704,4.34529324,2942.8,2941.2,5.68711]
[1766649964901,0.99240129,2942.7,2941.2,5.68711]
[1766649965204,3.4,2942.8,2941.2,5.68711]
[1766649965403,0.99231205,2942.7,2941.2,5.68711]
[1766649965706,4.34778937,2942.8,2941.2,6.8264998]
[1766649965902,0.99231163,2942.7,2941.2,6.8264998]
[1766649966198,4.36732163,2942.8,2941.3,0.17011]
[1766649966403,0.99219394,2942.7,2941.3,0.17011]
[1766649966602,4.36732163,2942.8,2941.4,8.5]
[1766649966798,0.99218661,2942.7,2941.5,3.4]
[1766649966997,4.36732163,2942.8,2941.6,5.917]
[1766649967198,0.99218661,2942.7,2941.6,5.917]
[1766649967398,4.36732163,2942.8,2941.6,5.917]
[1766649967599,0.99209702,2942.7,2941.6,5.917]
[1766649967808,4.36732163,2942.8,2941.6,5.917]
[1766649967998,0.99209646,2942.7,2941.6,5.917]
[1766649968308,4.37512614,2942.8,2941.6,5.917]
[1766649971795,0.97512614,2942.8,2941.6,5.917]
[1766649971996,3.4,2942.7,2941.6,5.917]
[1766649972604,0.57141192,2943.1,2941.6,5.917]
[1766649972807,4.39173766,2943.0,2941.6,5.917]
[1766649972993,0.99173766,2942.9,2941.6,5.917]
[1766649973198,3.4,2943.0,2941.6,5.917]
[1766649973400,0.99167765,2942.9,2941.6,5.917]
[1766649973598,3.4,2943.0,2941.6,5.917]
[1766649974605,0.57141192,2943.1,2941.6,5.917]
[1766649974806,3.97141192,2943.1,2941.6,5.917]
[1766649975307,0.97377492,2943.2,2941.8,0.17008]
[1766649975502,0.97377492,2943.2,2942.0,0.17006]
[1766649975707,0.97377492,2943.2,2942.1,5.917]
[1766649976005,0.97377492,2943.2,2942.2,11.9]
[1766649980213,3.52e-06,2943.2,2942.2,12.07005]
[1766649980408,3.52e-06,2943.2,2942.3,0.17005]
[1766649980611,3.52e-06,2943.2,2942.4,0.17004]
[1766649980808,3.52e-06,2943.2,2942.5,9.317]
[1766649981319,3.52e-06,2943.2,2942.6,0.0051]
[1766650013238,3.52e-06,2943.2,2942.7,3.398]
[1766650013439,0.00333617,2943.5,2942.7,3.398]
[1766650014338,0.00510352,2943.4,2942.7,3.398]
[1766650022832,3.52e-06,2943.4,2942.7,3.398]
[1766650024747,3.969e-05,2943.5,2942.7,3.398]
[1766650024945,4.3691033,2943.7,2942.7,3.398]
[1766650025739,0.00510352,2943.5,2942.7,3.398]
[1766650026041,0.003337,2943.5,2942.7,3.398]
[1766650026540,3.7e-05,2943.5,2942.7,3.398]
[1766650026740,0.9701033,2943.7,2942.7,3.398]
[1766650027639,0.00510352,2943.5,2942.7,3.398]
[1766650027948,0.97279678,2943.7,2942.7,3.398]
[1766650028847,0.00510352,2943.5,2942.7,3.398]
[1766650030246,0.00269348,2943.7,2942.7,3.398]
[1766650030448,0.00269348,2943.7,2942.7,4.62107604]
[1766650031349,0.00510352,2943.5,2942.7,4.62107604]
[1766650032845,0.00269348,2943.7,2942.7,4.62107604]
[1766650033849,3.398,2943.9,2942.7,4.62107604]
[1766650035051,1.224535,2944.5,2942.7,4.79109604]
[1766650035253,3.398,2944.4,2942.7,4.79109604]
[1766650035451,4.42276199,2944.4,2942.8,4.28280776]
[1766650036357,4.42674899,2944.4,2942.8,4.45282776]
[1766650036657,4.42674899,2944.4,2942.8,0.17002]
[1766650036860,4.42674899,2944.4,2942.8,9.64087312]
[1766650037454,4.42674899,2944.4,2943.0,0.17001]
[1766650037648,0.003987,2944.4,2943.1,3.568]
[1766650037954,3.398,2944.7,2943.2,9.72927084]
[1766650038146,3.398,2944.7,2943.3,5.915]
[1766650038349,3.398,2944.7,2943.4,3.398]
[1766650038843,3.398,2944.7,2943.4,3.40201156]
[1766650039048,3.4011089,2944.7,2943.4,3.40201156]
[1766650040154,0.0031089,2944.7,2943.4,3.40201156]
[1766650040656,0.0031089,2944.7,2943.4,3.6793101]
[1766650041054,0.0031089,2944.7,2943.5,0.16998]
[1766650042264,4.41167563,2945.2,2943.4,3.6793101]
[1766650042457,1.01367563,2945.2,2943.4,3.6793101]
[1766650042663,1.01367563,2945.2,2943.6,3.69642243]
[1766650042858,1.01367563,2945.2,2944.1,0.00509459]
[1766650043057,1.01367563,2945.2,2944.2,17.808]
[1766650043368,1.01734467,2945.2,2944.2,17.808]
[1766650044155,1.224535,2946.7,2944.2,17.808]
[1766650044359,1.0241827,2945.9,2944.2,19.0553423]
[1766650044558,3.398,2945.8,2944.2,19.05506359]
[1766650044964,3.398,2945.8,2944.2,17.808]
[1766650045267,3.40134397,2945.8,2944.2,19.05506359]
[1766650045566,3.40134397,2945.8,2944.2,17.808]
[1766650045769,3.40134397,2945.8,2944.2,19.0554719]
[1766650046066,3.40134397,2945.8,2944.2,17.808]
[1766650046265,3.40134397,2945.8,2944.2,19.0554719]
[1766650046766,3.40134397,2945.8,2944.2,17.808]
[1766650047971,3.40134397,2945.8,2944.2,19.015801]
[1766650048872,3.40134397,2945.8,2944.2,17.808]
[1766650049473,3.40134397,2945.8,2944.3,3.66093442]
[1766650049861,4.397e-05,2945.8,2944.6,0.16991]
[1766650050168,4.397e-05,2945.8,2944.7,9.311]
[1766650050667,4.397e-05,2945.8,2944.7,10.58324808]
[1766650050881,4.397e-05,2945.8,2944.7,9.311]
[1766650051172,4.397e-05,2945.8,2944.7,1.27227787]
[1766650051367,4.397e-05,2945.8,2944.8,4.901]
[1766650054775,4.397e-05,2945.8,2944.8,6.20168562]
[1766650055669,4.397e-05,2945.8,2944.8,6.20634153]
[1766650056773,0.16975,2947.5,2945.2,0.16988]
[1766650057068,4.4769515,2947.6,2946.1,0.00509459]
[1766650057268,3.397,2947.6,2946.2,11.984]
[1766650057470,3.397,2947.6,2946.1,0.00509459]
[1766650057471,5.915,2947.6,2946.3,9.311]
[1766650057673,6.99459019,2947.6,2946.3,9.311]
[1766650057975,6.99895504,2947.6,2946.3,9.31529778]
[1766650058178,1.08395504,2947.6,2946.3,9.31529778]
[1766650058374,3.396,2947.5,2946.3,9.31529778]
[1766650062272,3.396,2947.5,2946.3,0.00429778]
[1766650062472,3.396,2947.5,2946.4,3.396]
[1766650064170,1.14732546,2947.4,2945.7,3.396]
[1766650064372,0.97805042,2947.3,2945.4,3.396]
[1766650064566,0.16979,2946.9,2945.3,3.396]
[1766650064776,0.1698,2946.7,2945.3,3.396]
[1766650064977,41.77805042,2946.6,2945.3,3.396]
[1766650065172,0.00506484,2946.2,2945.7,0.00509459]
[1766650065475,3.395,2946.1,2945.7,0.00509459]
[1766650068180,3.395,2946.1,2945.3,3.39874659]
[1766650069182,3.395,2946.1,2945.4,0.00509459]
[1766650076397,3.396,2946.0,2945.4,0.00509459]
[1766650077999,3.396,2946.0,2944.9,1.28425358]
[1766650078195,3.396,2946.0,2945.0,3.396]
[1766650078998,3.396,2946.0,2945.2,0.00509459]
[1766650084799,0.00506484,2946.2,2945.2,0.00509459]
[1766650085002,9.443,2946.1,2945.2,0.00509459]
[1766650085304,0.00506484,2946.2,2945.3,3.396]
[1766650088500,0.00506484,2946.2,2945.2,0.00509459]
[1766650088707,3.40106484,2946.2,2945.2,3.40109459]
[1766650089305,0.00506484,2946.2,2945.2,3.40109459]
[1766650089806,0.00506484,2946.2,2945.2,4.73127331]
[1766650090702,3.396,2946.5,2945.2,4.73127331]
[1766650092406,3.396,2946.6,2945.2,4.73127331]
[1766650092807,0.00509459,2946.2,2945.2,4.73127331]
[1766650093808,3.396,2946.6,2945.2,4.73127331]
[1766650094909,1.10361753,2946.9,2945.2,4.73127331]
[1766650095109,3.396,2946.8,2945.2,4.73127331]
[1766650095810,1.10361753,2946.9,2945.2,4.73127331]
[1766650096002,3.395,2946.8,2945.2,4.90115331]
[1766650096204,1.10361753,2946.9,2945.3,3.55028944]
[1766650096205,4.49861753,2946.9,2945.3,3.55028944]
[1766650096696,3.395,2946.9,2945.3,3.55028944]
[1766650098805,3.395,2946.9,2945.2,1.50515331]
[1766650099112,3.395,2946.9,2945.4,13.346]
[1766650099511,3.395,2946.9,2945.2,1.50515331]
[1766650099811,3.395,2946.9,2945.3,9.306]
[1766650100013,1.1036497,2947.3,2945.3,9.306]
[1766650100214,4.088,2946.9,2945.3,9.306]
[1766650100510,3.395,2946.8,2945.3,9.306]
[1766650105811,1.04182833,2947.1,2945.3,9.306]
[1766650106016,5.04672853,2947.0,2945.3,9.306]
[1766650106313,4.057,2947.0,2945.3,9.306]
[1766650107118,1.05353653,2947.1,2945.3,9.306]
[1766650107320,10.47281075,2947.0,2945.3,9.306]
[1766650107506,9.483,2947.0,2945.3,9.306]
[1766650107711,0.98992179,2946.9,2945.3,9.306]
[1766650107918,0.98992179,2946.8,2945.3,9.306]
[1766650108218,4.38492179,2946.7,2945.3,9.306]
[1766650108418,0.98992179,2946.6,2945.3,9.306]
[1766650108619,6.088,2946.5,2945.3,9.306]
[1766650108921,3.395,2946.4,2945.3,9.306]
[1766650111916,6.088,2946.3,2945.3,9.306]
[1766650112216,3.395,2946.2,2945.3,9.306]
[1766650112411,3.395,2946.3,2945.3,9.306]
[1766650117529,1.394315,2947.0,2945.3,9.306]
[1766650117822,10.04954261,2946.9,2945.3,9.306]
[1766650118023,0.98854261,2946.8,2945.3,9.306]
[1766650118222,0.98854261,2946.7,2945.3,9.306]
[1766650118423,4.38354261,2946.6,2945.3,9.306]
[1766650118622,3.395,2946.6,2945.3,9.306]
[1766650119827,1.394315,2947.0,2945.3,9.306]
[1766650120021,0.98852194,2946.9,2945.3,9.306]
[1766650120228,6.75052194,2946.8,2945.3,9.306]
[1766650120524,0.98852194,2946.7,2945.3,9.306]
[1766650121620,4.38352194,2946.6,2945.3,9.306]
[1766650121819,3.395,2946.6,2945.3,9.306]
[1766650131134,0.98895755,2946.5,2945.3,9.306]
[1766650131330,3.5648,2946.6,2945.2,3.40009459]
[1766650131523,0.98903647,2946.5,2945.2,3.40009459]
[1766650131731,0.98903647,2946.5,2945.0,0.00281032]
[1766650131934,0.98903647,2946.5,2944.8,1.30534153]
[1766650131935,1.224535,2946.3,2944.8,1.30534153]
[1766650132236,0.16983,2946.1,2944.8,1.30534153]
[1766650132527,7.07503647,2946.0,2944.8,1.30534153]
[1766650132736,4.38403647,2945.9,2944.8,1.30534153]
[1766650132922,0.00509459,2945.6,2945.1,0.00509459]
[1766650133121,3.396,2945.5,2945.1,0.00509459]
[1766650133322,3.40003871,2945.5,2945.1,0.00509459]
[1766650137336,3.396,2945.4,2945.1,0.00509459]
[1766650149451,0.00403871,2945.5,2945.1,0.00509459]
[1766650163156,0.00403871,2945.5,2944.8,4.70503474]
[1766650164066,0.00403871,2945.5,2944.9,0.00509459]
[1766650171062,0.00403871,2945.5,2944.8,1.03345631]
[1766650171267,0.00403871,2945.5,2944.1,3.396]
[1766650171268,0.99342256,2945.4,2944.1,3.396]
[1766650171468,10.47342256,2945.3,2944.1,3.396]
[1766650171669,0.99342256,2945.2,2944.1,3.396]
[1766650171862,0.99342256,2945.1,2944.1,3.396]
[1766650172062,4.38942256,2945.0,2943.4,1.33005172]
[1766650172267,0.99314507,2944.9,2944.1,0.00509459]
[1766650172473,6.084,2944.8,2944.1,0.00509459]
[1766650172671,3.396,2944.7,2944.1,0.00509459]
[1766650178880,3.396,2944.7,2943.8,3.396]
[1766650179784,3.396,2944.7,2944.0,0.00509459]
[1766650179984,3.396,2944.7,2943.8,3.396]
[1766650180878,3.396,2944.7,2944.0,0.00509459]
[1766650181486,1.27688537,2945.1,2944.0,0.00509459]
[1766650181687,18.96332714,2945.0,2944.0,0.00509459]
[1766650181986,17.974,2945.0,2944.0,0.00509459]
[1766650187290,9.484,2944.9,2944.0,0.00509459]
[1766650187988,1.26024159,2945.1,2944.0,0.00509459]
[1766650188184,18.96687768,2945.0,2944.0,0.00509459]
[1766650188385,17.978,2945.0,2944.0,0.00509459]
[1766650188686,18.14789,2945.0,2943.8,3.396]
[1766650188887,0.16991,2944.7,2943.4,0.00272348]
[1766650189090,10.58481997,2944.6,2943.4,0.00272348]
[1766650189693,10.58481997,2944.6,2943.7,0.0033964]
[1766650196211,0.98934216,2944.5,2943.7,0.0033964]
[1766650196411,10.58481997,2944.6,2943.7,0.0033964]
[1766650196615,0.98934218,2944.5,2943.7,0.0033964]
[1766650196808,10.58481997,2944.6,2943.7,0.0033964]
[1766650197009,0.98934216,2944.5,2943.7,0.0033964]
[1766650197208,10.58481997,2944.6,2943.7,0.0033964]
[1766650197411,0.9896268,2944.5,2943.7,0.0033964]
[1766650197611,10.58481997,2944.6,2943.7,0.0033964]
[1766650197915,0.98962714,2944.5,2943.7,0.0033964]
[1766650198103,10.58481997,2944.6,2943.7,0.0033964]
[1766650198303,0.99001696,2944.5,2943.7,0.0033964]
[1766650198507,10.58481997,2944.6,2943.7,0.0033964]
[1766650198710,0.9899963,2944.5,2943.7,0.0033964]
[1766650198911,10.58481997,2944.6,2943.7,0.0033964]
[1766650199111,0.98999628,2944.5,2943.7,0.0033964]
[1766650199315,0.99043105,2944.4,2943.7,0.0033964]
[1766650199618,9.486,2944.3,2943.7,0.0033964]
[1766650201813,1.09981997,2944.6,2943.7,0.0033964]
[1766650202118,0.99841016,2944.5,2943.7,0.0033964]
[1766650202321,9.485,2944.4,2943.7,0.0033964]
[1766650202510,6.087,2944.3,2943.7,0.0033964]
[1766650202707,3.398,2944.2,2943.7,0.0033964]
[1766650202908,1.09981997,2944.6,2943.7,0.0033964]
[1766650203111,7.08545267,2944.5,2943.7,0.0033964]
[1766650203405,9.485,2944.5,2943.7,0.0033964]
[1766650204314,0.99855895,2944.4,2943.7,0.0033964]
[1766650204620,9.485,2944.5,2943.7,0.0033964]
[1766650204818,0.99855929,2944.4,2943.7,0.0033964]
[1766650205120,9.485,2944.5,2943.7,0.0033964]
[1766650205317,0.9985975,2944.4,2943.7,0.0033964]
[1766650205518,9.485,2944.5,2943.7,0.0033964]
[1766650205720,0.99862889,2944.4,2943.7,0.0033964]
[1766650205919,9.485,2944.5,2943.7,0.0033964]
[1766650206123,0.9986289,2944.4,2943.7,0.0033964]
[1766650206326,9.485,2944.5,2943.7,0.0033964]
[1766650206618,0.99871174,2944.4,2943.7,0.0033964]
[1766650206815,9.485,2944.5,2943.7,0.0033964]
[1766650207018,0.99871127,2944.4,2943.7,0.0033964]
[1766650207213,9.485,2944.5,2943.7,0.0033964]
[1766650207413,0.9987746,2944.4,2943.7,0.0033964]
[1766650207620,9.485,2944.5,2943.7,0.0033964]
[1766650207821,0.99880737,2944.4,2943.7,0.0033964]
[1766650208014,9.485,2944.5,2943.7,0.0033964]
[1766650208214,0.99880737,2944.4,2943.7,0.0033964]
[1766650208512,9.485,2944.5,2943.7,0.0033964]
[1766650208808,0.99892028,2944.4,2943.7,0.0033964]
[1766650209013,9.485,2944.5,2943.7,0.0033964]
[1766650209312,0.99892027,2944.4,2943.7,0.0033964]
[1766650209514,9.485,2944.5,2943.7,0.0033964]
[1766650209809,0.99903618,2944.4,2943.7,0.0033964]
[1766650210013,9.485,2944.5,2943.7,0.0033964]
[1766650210214,0.99903617,2944.4,2943.7,0.0033964]
[1766650210422,9.485,2944.5,2943.7,0.0033964]
[1766650210724,0.99910264,2944.4,2943.7,0.0033964]
[1766650210926,9.485,2944.5,2943.7,0.0033964]
[1766650211128,0.99910264,2944.4,2943.7,0.0033964]
[1766650211326,9.485,2944.5,2943.7,0.0033964]
[1766650211620,0.99917883,2944.4,2943.7,0.0033964]
[1766650211817,9.485,2944.5,2943.7,0.0033964]
[1766650212020,0.99917882,2944.4,2943.7,0.0033964]
[1766650212220,9.485,2944.5,2943.7,0.0033964]
[1766650212428,0.99927044,2944.4,2943.7,0.0033964]
[1766650212625,9.485,2944.5,2943.7,0.0033964]
[1766650212827,0.99927044,2944.4,2943.7,0.0033964]
[1766650213026,9.485,2944.5,2943.7,0.0033964]
[1766650213228,0.99927044,2944.4,2943.7,0.0033964]
[1766650213433,9.485,2944.5,2943.7,0.0033964]
[1766650213730,0.99937305,2944.4,2943.7,0.0033964]
[1766650213922,9.485,2944.5,2943.7,0.0033964]
[1766650214117,0.99937303,2944.4,2943.7,0.0033964]
[1766650214322,9.485,2944.5,2943.7,0.0033964]
[1766650214523,0.99949158,2944.4,2943.7,0.0033964]
[1766650214729,9.485,2944.5,2943.7,0.0033964]
[1766650215027,0.99949158,2944.4,2943.7,0.0033964]
[1766650215218,9.485,2944.5,2943.7,0.0033964]
[1766650215421,0.99963059,2944.4,2943.7,0.0033964]
[1766650215622,0.99963059,2944.3,2943.7,0.0033964]
[1766650215821,3.398,2944.2,2943.7,0.0033964]
[1766650251451,3.398,2944.2,2943.4,0.00272348]
[1766650252450,0.00509459,2944.1,2943.4,0.00272348]
[1766650261953,0.00509459,2944.1,2942.6,4.28280776]
[1766650262157,1.00072944,2944.0,2942.7,3.398]
[1766650262362,3.398,2943.9,2942.7,3.398]
[1766650262964,3.398,2943.9,2942.7,3.40136041]
[1766650264969,3.842,2943.8,2941.3,4.28280776]
[1766650265166,0.99954043,2943.7,2941.7,17.81]
[1766650265469,3.398,2943.6,2941.7,23.0262008]
[1766650265671,3.398,2943.6,2941.7,21.5774889]
[1766650266166,3.398,2943.6,2941.7,21.58172042]
[1766650266368,3.398,2943.6,2941.9,0.17007]
[1766650267273,3.398,2943.6,2942.0,3.398]
[1766650267465,3.398,2943.6,2942.0,4.82483563]
[1766650268874,3.398,2943.6,2942.0,4.82909529]
[1766650269074,3.398,2943.6,2942.0,5.09429051]
[1766650269570,3.398,2943.6,2942.0,3.66319522]
[1766650269776,3.398,2943.6,2942.0,5.09429051]
[1766650270576,3.398,2943.6,2942.0,5.05797192]
[1766650270772,3.398,2943.6,2942.0,3.66319522]
[1766650271176,3.398,2943.6,2942.0,5.09512139]
[1766650271778,3.398,2943.6,2942.0,3.66319522]
[1766650272577,3.398,2943.6,2942.0,5.09512139]
[1766650273473,3.398,2943.6,2942.0,5.09484336]
[1766650274974,3.398,2943.6,2942.0,5.06468748]
[1766650275166,6.096,2943.5,2942.0,5.06468748]
[1766650275570,6.096,2943.5,2942.0,5.23474748]
[1766650275774,6.096,2943.5,2942.1,0.17006]
[1766650275977,6.096,2943.5,2942.2,5.918]
[1766650276175,6.096,2943.5,2942.3,3.399]
[1766650288785,6.096,2943.5,2942.3,11.896]
[1766650311806,6.096,2943.5,2942.4,3.399]
[1766650313114,6.096,2943.5,2942.2,0.17005]
[1766650313415,6.096,2943.5,2942.3,4.24]
[1766650315511,1.00371705,2943.4,2942.3,4.24]
[1766650315712,3.399,2943.3,2942.3,4.24]
[1766650316811,3.399,2943.3,2941.7,0.00423152]
[1766650317012,1.00366089,2943.2,2941.8,9.316]
[1766650317212,3.399,2943.3,2941.8,9.316]
[1766650317412,1.00304638,2943.2,2941.8,9.316]
[1766650317610,3.399,2943.3,2941.8,9.316]
[1766650317811,1.0030466,2943.2,2941.8,9.316]
[1766650318117,3.399,2943.3,2941.8,9.316]
[1766650318314,2.23959071,2943.2,2941.8,9.316]
[1766650318612,3.399,2943.3,2941.8,9.316]
[1766650318807,1.00268284,2943.2,2941.8,9.316]
[1766650319001,1.21926585,2943.2,2941.8,9.316]
[1766650319402,3.399,2943.3,2941.8,9.316]
[1766650320605,4.62631891,2943.3,2941.8,9.316]
[1766650320813,1.00251492,2943.2,2941.8,9.316]
[1766650321011,1.00251492,2943.1,2941.8,9.316]
[1766650321206,3.399,2943.0,2941.7,0.00423152]
[1766650321411,3.19,2942.9,2941.8,3.399]
[1766650326213,4.39924194,2942.9,2940.8,1.47656536]
[1766650326417,0.00509459,2942.1,2940.8,1.47656536]
[1766650326719,50.292,2942.0,2940.5,5.918]
[1766650327226,50.292,2942.0,2940.5,5.92099212]
[1766650327421,9.492,2942.0,2940.5,0.00299212]
[1766650327819,40.8,2941.9,2940.5,0.00299212]
[1766650333025,40.97007,2941.9,2940.5,0.00299212]
[1766650333220,42.18856662,2941.9,2940.5,0.00299212]
[1766650333417,0.17008,2941.8,2940.5,0.00299212]
[1766650333623,3.4,2941.7,2940.5,0.00299212]
[1766650333825,14.628,2941.6,2940.5,0.00299212]
[1766650334131,55.428,2941.6,2940.5,0.00299212]
[1766650334335,55.59809,2941.6,2939.9,3.4]
[1766650334522,0.1701,2941.5,2939.9,3.4]
[1766650334721,55.428,2941.6,2939.9,3.4]
[1766650334722,3.5701,2941.4,2939.9,3.4]
[1766650334921,3.5701,2941.4,2939.7,3.4]
[1766650335128,5.03128134,2941.4,2939.7,3.4]
[1766650335430,0.17011,2941.3,2939.7,3.40395478]
[1766650335728,6.132,2941.2,2939.7,3.40395478]
[1766650335934,3.4,2941.1,2939.7,3.40395478]
[1766650337425,0.17012,2941.0,2939.7,0.00395478]
[1766650337626,6.137,2940.9,2939.7,0.00395478]
[1766650337829,0.00509459,2940.6,2939.7,0.00395478]
[1766650338025,9.538,2940.5,2939.7,0.00395478]
[1766650340333,0.00509459,2940.6,2939.7,0.00395478]
[1766650340527,4.003,2940.5,2939.7,0.00395478]
[1766650342236,9.539,2940.4,2939.7,0.00395478]
[1766650342931,0.00509459,2940.6,2939.7,0.00395478]
[1766650343132,4.059,2940.5,2939.7,0.00395478]
[1766650344132,0.00509459,2940.6,2939.7,0.00395478]
[1766650344434,4.034,2940.5,2939.7,0.00395478]
[1766650344634,0.00509459,2940.6,2939.7,0.00395478]
[1766650344933,5.148,2940.5,2939.7,0.00395478]
[1766650345125,0.00509459,2940.6,2939.7,0.00395478]
[1766650345326,5.125,2940.5,2939.7,0.00395478]
[1766650347536,0.00509459,2940.6,2939.7,0.00395478]
[1766650347736,6.138,2940.4,2939.7,0.00395478]
[1766650348038,0.00509459,2940.6,2939.7,0.00395478]
[1766650348635,5.203,2940.5,2939.7,0.00395478]
[1766650349837,9.54,2940.4,2939.7,0.00395478]
[1766650350538,9.54,2940.3,2939.7,0.00395478]
[1766650352940,0.00509459,2940.6,2939.7,0.00395478]
[1766650353134,9.539,2940.5,2939.7,0.00395478]
[1766650353841,0.00509459,2940.6,2939.7,0.00395478]
[1766650354041,6.137,2940.4,2939.7,0.00395478]
[1766650355537,0.99820291,2940.3,2939.7,0.00395478]
[1766650355733,4.40006614,2940.2,2939.2,3.402]
[1766650355932,0.99806614,2940.1,2939.2,3.402]
[1766650356131,5.804,2940.0,2938.8,11.904]
[1766650356338,4.40006614,2939.9,2938.8,11.904]
[1766650356538,0.99806614,2939.8,2938.8,11.904]
[1766650356841,0.99806614,2939.8,2938.8,11.90780368]
[1766650361344,0.99806614,2939.7,2938.8,11.90780368]
[1766650361543,4.40006614,2939.6,2938.8,11.90780368]
[1766650361751,3.402,2939.6,2938.8,11.90780368]
[1766650362652,4.743,2939.9,2938.8,11.90780368]
[1766650362846,4.4035699,2939.8,2938.8,11.90780368]
[1766650363045,1.0005699,2939.7,2938.8,11.90780368]
[1766650363245,0.74218231,2939.6,2938.8,11.90780368]
[1766650363440,3.403,2939.7,2938.8,11.90780368]
[1766650363644,0.0814,2939.5,2938.8,11.90780368]
[1766650364653,0.0814,2939.5,2938.9,5.926]
[1766650367656,3.403,2939.7,2938.9,5.926]
[1766650372054,1.224535,2940.2,2938.9,5.926]
[1766650372356,3.833,2940.1,2938.9,5.926]
[1766650373054,1.224535,2940.2,2938.9,5.926]